Cogmind - Beta 11.1 @@@ ROGUE MODE // 2022.10.28 @ 17:16:45 Player: simber Result: Destroyed self with Grenade Launcher Performance ------------- Evolutions (0) 0 Regions Visited (2) 400 Robots Destroyed (20) 100 Value Destroyed (486) 486 Prototype IDs (0) 0 Alien Tech Used (0) 0 Bonus (10) 10 TOTAL SCORE: 996 Bonus ------- High Alert Combat Kills 10 Cogmind --------- Core Integrity 0/250 Matter 280/300 Energy 60/100 System Corruption 0% Temperature Cool (0) Movement Walking (120) Location -10/Mines Parts ------- > --- POWER (1) -------- (None) > --- PROPULSION (2) --- Aluminum Leg Carbon-fiber Leg > --- UTILITY (2) ------ Improved Heat Sink Small Storage Unit > --- WEAPON (2) ------- Beamcaster Grenade Launcher > --- INVENTORY (8) ---- Light Treads Light Treads Heat Sink Huge Storage Unit Particle Gun Assault Rifle Peak State ------------ > --- POWER ------------ (None) > --- PROPULSION ------- Aluminum Leg Carbon-fiber Leg > --- UTILITY ---------- Improved Heat Sink Small Storage Unit > --- WEAPON ----------- Beamcaster Grenade Launcher > --- INVENTORY -------- Light Treads Light Treads Heat Sink Huge Storage Unit Particle Gun Assault Rifle [Rating: 14] Favorites ----------- Power Light Ion Engine Engine Light Ion Engine Propulsion Aluminum Leg Leg Aluminum Leg Utility Small Storage Unit Device Sensor Array Storage Small Storage Unit Weapon Medium Laser Energy Gun Medium Laser Ballistic Gun Assault Rifle Launcher Grenade Launcher Build | -11 -10 -10 ------- Run | Scr Mat Min Slots Evolved . | . . . Power . | . . . Propulsion . | . . . Utility . | . . . Weapon . | . . . Parts Attached 21 | 6 6 9 Power 3 | 1 . 2 Engine 3 | 1 . 2 Core . | . . . Reactor . | . . . Propulsion 6 | 2 2 2 Treads . | . . . Leg 6 | 2 2 2 Wheel . | . . . Hover . | . . . Flight . | . . . Utility 7 | 1 4 2 Device 4 | . 2 2 Storage 3 | 1 2 . Processor . | . . . Hackware . | . . . Protection . | . . . Artifact . | . . . Weapon 5 | 2 . 3 Energy Gun 3 | 1 . 2 Energy Cannon . | . . . Ballistic Gun 1 | 1 . . Ballistic Cannon . | . . . Launcher 1 | . . 1 Special Weapon . | . . . Impact Weapon . | . . . Slashing Weapon . | . . . Piercing Weapon . | . . . Special Melee Weapon . | . . . Unidentified Prototypes . | . . . Parts Lost 5 | . . 5 Power 1 | . . 1 Propulsion 1 | . . 1 Utility 1 | . . 1 Weapon 2 | . . 2 Highest Loss Streak 4 | . . 4 To Critical Strikes . | . . . Average Slot Usage (%) 93 | . 90 95 Engine 12 | . 14 11 Leg 27 | . 28 26 Device 10 | . 4 13 Storage 14 | . 14 14 Energy Gun 17 | . 14 19 Ballistic Gun 7 | . 14 4 Launcher 2 | . . 3 Naked Turns . | . . . Heaviest Build 17 | 12 13 17 Greatest Support 25 | 20 20 25 Greatest Overweight (x) 1 | . . 1 Average Overweight (x) . | . . . Largest Inventory Capacity 25 | 8 25 8 Average Capacity 7 | 6 8 8 Most Carried 8 | 3 8 8 Average Carried 6 | 1 5 6 Final Capacity 8 | 8 8 8 Final Carried 8 | 3 8 6 Class Distribution -------------------- 65% | Mutant 34% | Scavenger-Mutant Dominant Class ---------------- Mutant | -10/Materials Scavenger-Mutant | -10/Mines Resources | -11 -10 -10 ----------- Run | Scr Mat Min Matter Collected 527 | 144 219 164 Remotely . | . . . Salvage Created 579 | . 219 360 Parts 37 | . 16 21 Haulers Intercepted . | . . . Recyclers Shooed 3 | . 2 1 Parts Field Recycled . | . . . Retrieved Matter . | . . . Parts Self-Destructed . | . . . Prevented . | . . . Kills | -11 -10 -10 ------- Run | Scr Mat Min Combat Hostiles Destroyed 17 | . 6 11 Guns 11 | . 6 5 AOE 6 | . . 6 Classes Destroyed 4 | . 3 1 Recycler 1 | . . 1 Watcher 2 | . 2 . Swarmer 8 | . 3 5 Grunt 9 | . 3 6 Best Kill Streak 7 | . 7 4 Combat Bots Only 5 | . 5 4 Max Kills in Single Turn 2 | . 1 2 Gunslinging . | . . . Exploded 2 | . . 2 Melee . | . . . Uniques/NPCs Destroyed . | . . . Combat | -11 -10 -10 -------- Run | Scr Mat Min Damage Taken 963 | . 333 630 Core 253 | . 89 164 Absorbed by Shields . | . . . Core Remaining (%) 100 | 100 . . Volleys Fired 52 | . 21 31 Largest 2 | . 2 2 Hottest 125 | . 70 125 Shots Fired 101 | . 42 59 Gun 94 | . 42 52 Cannon . | . . . Launcher 7 | . . 7 Special . | . . . Kinetic 29 | . 21 8 Thermal 57 | . 21 36 Explosive 7 | . . 7 Electromagnetic 8 | . . 8 Robot Hit Streak 9 | . 8 9 Robot Miss Streak 3 | . 3 3 Penetration Max . | . . . Secondary Targets 2 | . 2 . Max Gunslinging Chain 1 | . 1 . Shots Hit Robots 66 | . 29 37 Core Hits 29 | . 13 16 Critical Kills 1 | . . 1 Critical Parts Destroyed . | . . . Critical Strikes 5 | . 1 4 Burn 4 | . 1 3 Destroy 1 | . . 1 Melee Attacks . | . . . Impact . | . . . Slashing . | . . . Piercing . | . . . Sneak Attacks . | . . . Combat Hostiles . | . . . Follow-up Attacks . | . . . Damage Inflicted 1205 | . 397 808 Guns 915 | . 397 518 Cannons . | . . . Explosions 290 | . . 290 Melee . | . . . Ramming . | . . . Kinetic 285 | . 206 79 Thermal 598 | . 191 407 Explosive 290 | . . 290 Electromagnetic 32 | . . 32 Impact . | . . . Slashing . | . . . Piercing . | . . . Highest Corruption . | . . . Average Corruption . | . . . Corruption Purged . | . . . Corruption Blocked . | . . . Overload Shots . | . . . Overflow Damage 45 | . . 45 Projectiles . | . . . Explosions 45 | . . 45 Melee . | . . . Knockbacks . | . . . Impact . | . . . Kinetic . | . . . Secondary . | . . . Self-Inflicted Damage 122 | . . 122 Shots 4 | . . 4 Rammed . | . . . Targets Rammed . | . . . Kicked . | . . . Crushed . | . . . Highest Temperature 445 | . 165 445 Average Temperature 147 | . 61 184 Received Heat Transfer 324 | . 102 222 Effects 5 | . . 5 Shutdowns 2 | . . 2 Energy Bleed 1 | . . 1 Short Circuit 2 | . . 2 Siege Activations . | . . . Robots Corrupted . | . . . Combat Hostiles . | . . . Parts Fried . | . . . Impact Corruptions . | . . . Robots Melted . | . . . Combat Hostiles . | . . . Parts Melted 4 | . 2 2 Heat Transferred 1739 | . 629 1110 Parts Sabotaged . | . . . Parts Stolen . | . . . Parts Stripped . | . . . Power Chain Reactions . | . . . Missiles Intercepted . | . . . Alert | -11 -10 -10 ------- Run | Scr Mat Min Peak Influence 485 | . 200 485 Initial 78 | . . 78 Average 137 | . 83 192 Maximum Alert Level 2 | . 1 2 Low Security (%) 72 | 100 76 66 Level 1 25 | . 23 30 Level 2 1 | . . 3 Level 3 . | . . . Level 4 . | . . . Level 5 . | . . . High Security . | . . . Max Security . | . . . Squads Dispatched 1 | . 1 . Investigation 1 | . 1 . Extermination . | . . . Reinforcement . | . . . Assault . | . . . Garrison . | . . . Intercept . | . . . Searches Triggered . | . . . Construction Impeded . | . . . Haulers Reinforced . | . . . Active Scanning Responses . | . . . Cargo Convoy Interrupts . | . . . Stealth | -11 -10 -10 --------- Run | Scr Mat Min Distress Signals 2 | . 2 . Communications Jammed . | . . . Distress Signals . | . . . Times Spotted 24 | . 9 15 Peak Tracking Total 4 | . 4 4 Tactical Retreats 2 | . . 2 Traps | -11 -10 -10 ------- Run | Scr Mat Min Traps Triggered 1 | . 1 . Indirectly . | . . . Trap Hack Attempts . | . . . Triggered . | . . . Disarmed . | . . . Reprogrammed . | . . . Reused . | . . . Traps Extracted . | . . . Installed . | . . . Triggered . | . . . Machines | -11 -10 -10 ---------- Run | Scr Mat Min Machines Disabled 1 | . . 1 Max in Single Turn 1 | . . 1 Machines Sabotaged . | . . . Garrisons Compromised . | . . . Overloaded Fab Kills . | . . . Hacking | -11 -10 -10 --------- Run | Scr Mat Min Machines Accessed 1 | . 1 . Terminals 1 | . 1 . Fabricators . | . . . Repair Stations . | . . . Recycling Units . | . . . Scanalyzers . | . . . Garrison Access . | . . . Total Hacks 1 | . 1 . Successful . | . . . Failed 1 | . 1 . Catastrophic . | . . . Database Lockouts . | . . . Manual 1 | . 1 . Terminals 1 | . 1 . Fabricators . | . . . Repair Stations . | . . . Recycling Units . | . . . Scanalyzers . | . . . Garrison Access . | . . . Terminal Hacks . | . . . Fabricator Hacks . | . . . Repair Station Hacks . | . . . Recycling Unit Hacks . | . . . Scanalyzer . | . . . Garrison Access Hacks . | . . . Unauthorized Hacks . | . . . Terminals . | . . . Fabricators . | . . . Repair Stations . | . . . Recycling Units . | . . . Scanalyzers . | . . . Garrison Access . | . . . Data Cores Recovered . | . . . Used . | . . . Hacking Detections 1 | . 1 . Full Trace Events . | . . . Feedback Events . | . . . Feedback Blocked . | . . . Robot Schematics Acquired . | . . . Robots Built . | . . . Authchips . | . . . Time . | . . . Total Robot Build Rating . | . . . Part Schematics Acquired . | . . . Parts Built . | . . . Authchips . | . . . Time . | . . . Total Part Build Rating . | . . . Parts Repaired . | . . . Time . | . . . Parts Recycled . | . . . Recycled Matter . | . . . Retrieved Matter . | . . . Retrieved Components . | . . . Parts Scanalyzed . | . . . Part Schematics Acquired . | . . . Parts Damaged . | . . . Bothacking | -11 -10 -10 ------------ Run | Scr Mat Min Used RIF Installer . | . . . Robots Hacked . | . . . Non-combat . | . . . Combat . | . . . Robot Hacks Applied . | . . . Relay Couplers Released . | . . . Fabnet Peak Effective % . | . . . Robots Rewired . | . . . Allies Hacked . | . . . Hacks Repelled . | . . . Allies | -11 -10 -10 -------- Run | Scr Mat Min Total Allies . | . . . Largest Group . | . . . Highest-Rated Group . | . . . Highest-Rated Ally . | . . . Total Orders . | . . . Ally Attacks . | . . . Total Damage . | . . . Kills . | . . . Allies Corrupted . | . . . Allies Melted . | . . . Intel | -11 -10 -10 ------- Run | Scr Mat Min Robot Analysis Total . | . . . Derelict Logs Recovered . | . . . Drone Launches . | . . . Drone Recoveries . | . . . Exploration | -11 -10 -10 ------------- Run | Scr Mat Min Turns Passed 684 | 65 230 389 Spaces Moved 357 | 49 113 195 Core 14 | 14 . . Treads . | . . . Legs 343 | 35 113 195 Wheels . | . . . Hover . | . . . Flight . | . . . Fastest Speed 50 | 50 120 120 Average Speed 118 | 100 120 122 Slowest Speed 190 | 120 120 190 Overloaded Moves . | . . . Propulsion Burnouts . | . . . Robots Hopped . | . . . Cave-ins Triggered . | . . . Exploration Rate (%) 21 | 3 19 43 Regions Visited 2 Branch Regions 1 Pre-discovered Areas . | . . . Known Exits Taken . | . . . Unknown Exits Taken 2 | 1 1 . Scrap Searched . | . . . Spaces Dug . | . . . Terrain Destroyed 47 | . . 47 Melee . | . . . Projectile . | . . . AOE 47 | . . 47 Terrain Rammed . | . . . Walls Destroyed . | . . . Machines Disabled . | . . . Actions | -11 -10 -10 --------- Run | Scr Mat Min Total 517 | 65 164 288 Wait 64 | 2 16 46 Move 355 | 48 112 195 Hop . | . . . Pick Up 20 | 9 7 4 Fast Attach . | . . . Attach 11 | 6 1 4 Detach . | . . . Swap 10 | . 5 5 Drop 5 | . 2 3 Fire 52 | . 21 31 Melee . | . . . Ram . | . . . Kick . | . . . Crush . | . . . Escape Stasis . | . . . Rewire . | . . . Trap . | . . . Miscellaneous . | . . . Route ------- -11/Scrapyard -10/Materials -10/Mines History --------- Turn | Location | Event 7 | -11/Scrapyard | Discovered new exit (range 15) 66 | -11/Scrapyard | Entered Materials 286 | -10/Materials | Discovered new exit (range 7) 296 | -10/Materials | Entered Mines 300 | -10/Mines | Build established: Mutant 436 | -10/Mines | Core integrity fell below 50% 576 | -10/Mines | Core integrity fell below 20% 642 | -10/Mines | Lost 4 parts (1p1n1u1w) 685 | -10/Mines | Destroyed self with Grenade Launcher Last Messages --------------- 00587_ Acquired 10 matter. 00596_ Aluminum Leg destroyed. 00611_ G-47 Trooper destroyed. 00611_ Lgt. Ion Engine destroyed. 00611_ Destroyed Lgt. Ion Engine. 00614_ Acquired 5 matter. 00619_ Acquired Imp. Heat Sink. 00622_ Acquired Particle Gun. 00623_ Acquired 10 matter. 00626_ Acquired Aluminum Leg. 00626_ U-05 Engineer lays Concrete. 00629_ U-05 Engineer builds a Wall. 00629_ Acquired 7 matter. 00633_ U-05 Engineer builds a Wall. 00642_ Acquired 3 matter. 00643_ U-05 Engineer lays Concrete. 00669_ S-10 Pest destroyed. 00675_ Acquired 9 matter. 00676_ Acquired 11 matter. 00682_ G-34 Mercenary destroyed. Map ----- +----------------------------------------------------+ | ## #! #???????# ?????????? | | # #??????? ?????????? | | % %%% #??????# #?????????? | | # #???### #??????????? | | ## # #??## #???????????? | | ###### ####??# #????????????? | | #?### ##???## #????????????? | | #???# #???## #????????????? | | ##???# #???# #????????????? | | ####?# #???# #?????????????? | | # ## %##### ##??####???????? | | # !%= [% ##?## ##??????? | | % =###### #### #??????? | | = #??##### #?# #??????? | | ## ###??????# #?# #???????? | | #######?????# ### ##???????? | | ## ####?## ## #???????? | | ## #???????? | | ## #???????? | | #### ### ????????? | | ###??# ## #?##== #?????????? | | #????## #?# #### [ #?????????? | | ### #?????###??# # ==##?????????? | | ??? #??????????# [ ##????????? | | ??? #??????????### #????????? | | ??? #????????????#### @ ????????? | | ??? #???????????????#### #???????? | | ??? #??????????????????# #???????? | | ??? ??????????????????# ##???????? | | ???##??????????????????? ????????? | | ???????????????????????? ????????? | | ???????????????????????? ????????? | | ???????????????????????? %*????????? | | ???????????????????????? =g"???????? | | ???????????????????????? "???????? | | ??????????????????????? ???????? | | ???????????????????????#####???????? | | ???????????????????????????????????? | | ???????????????????????????????????? | | ???????????????????????????????????? | | ???????????????????????????????????? | | ???????????????????????????????????? | | | | | | | | | | | | | | | | | +----------------------------------------------------+ Best States ------------- Heat Dissipation 39 Energy Generation 10 Energy Capacity 125 Matter Stores 300 Matter Capacity 300 Sight Range 16 Robot Scan Range 14 Terrain Scan Density 10 Evasion (%) 55 Item Schematics ----------------- None Robot Schematics ------------------ None Fabricated ------------ Nothing Alien Tech Used ----------------- None Achievements -------------- None Challenges ------------ None Game ------ Seed SalvageSubatomicField Manual? 0 Play Time 00:12:44 Cumulative 7.6 hours Start 2022.10.28 @ 17:03:08 End 2022.10.28 @ 17:16:45 Sessions 1 Manual Loads 0 Difficulty Rogue Special Mode None Game No. 24 Rogue 20 Adventurer 0 Explorer 4 Win Type - Total 0 Types 0/0/0/0/0/0/0/0/0 Lore% 6 Gallery% 20 Achievement% 16 Wizard Run 0 Options --------- ASCII 0 Keyboard 0 Movement Mouse Keybinds 0 Fullscreen 1 Font 24/Smallcaps Map View 76x50 Tactical HUD 1 Map Filters NONE Filters NONE Steam 1 RUN: 59897c0a-925a-462c-ba0a-31c7115e636b